bitfinex/quotes_BTCUSD_20260104
["timestamp","ask_amount","ask_price","bid_price","bid_amount"]
[1767557117490,0.02397827,91089.0,91085.0,0.01097875]
[1767557118004,0.02397827,91089.0,91085.0,0.06587246]
[1767557119178,0.013,91089.0,91086.0,0.01097863]
[1767557119385,0.013,91089.0,91086.0,0.01093358]
[1767557119998,0.013,91089.0,91085.0,0.06587246]
[1767557120947,0.000999,91085.0,91083.0,0.06587396]
[1767557121336,0.0009111,91085.0,91084.0,0.05489438]
[1767557121624,0.01097839,91088.0,91084.0,0.01097887]
[1767557121804,0.06587049,91088.0,91083.0,0.06587396]
[1767557122519,0.01097839,91088.0,91084.0,0.01097887]
[1767557122724,0.07887011,91089.0,91084.0,0.06587299]
[1767557122945,0.01097839,91088.0,91083.0,0.06587396]
[1767557123113,0.01097851,91087.0,91083.0,0.01097899]
[1767557123315,0.06587055,91088.0,91083.0,0.06587386]
[1767557124410,0.01097839,91088.0,91084.0,0.06587314]
[1767557125537,0.01097839,91088.0,91084.0,0.01097887]
[1767557125919,0.06587053,91088.0,91083.0,0.06587386]
[1767557126507,0.06587053,91088.0,91084.0,0.01097887]
[1767557127097,0.06587053,91088.0,91083.0,0.06587386]
[1767557127497,0.01097839,91088.0,91084.0,0.01097887]
[1767557128152,0.07887011,91089.0,91084.0,0.06587292]
[1767557128452,0.07886966,91089.0,91088.0,0.00030393]
[1767557128665,0.07886966,91089.0,91085.0,0.01097875]
[1767557129044,0.07886966,91089.0,91084.0,0.06587292]
[1767557129480,0.06587059,91088.0,91083.0,0.06587289]
[1767557129611,0.06587059,91088.0,91083.0,0.06587397]
[1767557129815,0.01097851,91087.0,91083.0,0.06587397]
[1767557130038,0.06587059,91088.0,91083.0,0.06587397]
[1767557131576,0.01097851,91087.0,91083.0,0.01097899]
[1767557132179,0.000608,91083.0,91081.0,0.0548961]
[1767557132333,0.06587224,91086.0,91081.0,0.06587533]
[1767557132735,0.01097863,91086.0,91082.0,0.01097911]
[1767557133386,0.000608,91082.0,91076.0,0.01101984]
[1767557133528,0.04560984,91083.0,91077.0,0.06587789]
[1767557133726,0.04560984,91083.0,91076.0,0.01101984]
[1767557133727,0.04560984,91080.0,91076.0,4e-05]
[1767557134048,0.01097911,91082.0,91080.0,0.000999]
[1767557134247,0.06587407,91083.0,91080.0,0.000999]
[1767557134454,0.06587407,91083.0,91078.0,0.06587756]
[1767557134669,0.06587407,91083.0,91079.0,0.01097947]
[1767557135475,0.06587341,91084.0,91079.0,0.06587654]
[1767557135689,0.01097899,91083.0,91079.0,0.01097947]
[1767557135912,0.06587341,91084.0,91079.0,0.01097947]
[1767557136125,0.01097899,91083.0,91079.0,0.06587682]
[1767557136268,0.06587364,91085.0,91080.0,0.06587601]
[1767557136606,0.01097887,91084.0,91080.0,0.01097935]
[1767557136959,0.06587364,91085.0,91080.0,0.065876]
[1767557138781,0.01097875,91085.0,91081.0,0.01097923]
[1767557138982,0.01097887,91084.0,91079.0,0.06587682]
[1767557139184,0.06587256,91085.0,91080.0,0.06587569]
[1767557140946,0.06587081,91088.0,91085.0,0.000999]
[1767557141142,0.01097839,91088.0,91085.0,0.000999]
[1767557141345,0.01097863,91086.0,91082.0,0.01097911]
[1767557143338,0.01097863,91086.0,91082.0,0.06587461]
[1767557145192,0.01097863,91086.0,91078.0,0.05430354]
[1767557145372,0.01097863,91086.0,91082.0,0.01097911]
[1767557148015,0.01097863,91086.0,91081.0,0.06587447]
[1767557148243,0.01097863,91086.0,91082.0,0.01097911]
[1767557148437,0.01097863,91086.0,91080.0,0.01097935]
[1767557148438,0.01097875,91085.0,91080.0,0.01097935]
[1767557148647,0.01097875,91085.0,91080.0,0.06587601]
[1767557148802,0.01097875,91085.0,91081.0,0.01097923]
[1767557153574,0.06587221,91086.0,91082.0,0.01097911]
[1767557153575,0.01097863,91086.0,91082.0,0.01097911]
[1767557153759,0.01089072,91086.0,91082.0,0.01097911]
[1767557154141,0.01089072,91086.0,91081.0,0.06587534]
[1767557154142,0.065784,91086.0,91081.0,0.06587534]
[1767557156497,0.01097875,91085.0,91081.0,0.01097923]
[1767557156675,0.01097875,91085.0,91080.0,0.06587563]
[1767557156890,0.01097887,91084.0,91080.0,0.01097935]
[1767557157102,0.06587326,91084.0,91079.0,0.06587641]
[1767557158254,0.06587326,91084.0,91080.0,0.01097935]
[1767557158453,0.01097887,91084.0,91080.0,0.01097935]
[1767557158666,0.06587301,91085.0,91080.0,0.01097935]
[1767557160219,0.06587301,91085.0,91080.0,0.06587614]
[1767557160838,0.01097875,91085.0,91081.0,0.01097923]
[1767557161525,0.06587335,91084.0,91079.0,0.06587641]
[1767557161732,0.06587335,91084.0,91076.0,0.06591862]
[1767557161733,0.05489644,91081.0,91076.0,0.06591862]
[1767557161953,0.01097899,91083.0,91076.0,0.06591862]
[1767557161954,0.05920723,91080.0,91076.0,4e-05]
[1767557162122,0.05925487,91080.0,91076.0,0.01101984]
[1767557162300,0.04827552,91080.0,91076.0,0.06591889]
[1767557163661,0.04827552,91080.0,91076.0,4e-05]
[1767557163662,0.10317397,91078.0,91076.0,4e-05]
[1767557163873,0.10317412,91077.0,91076.0,4e-05]
[1767557164063,0.01097947,91079.0,91061.0,0.03293288]
[1767557164064,0.01098128,91064.0,91061.0,0.03293288]
[1767557164186,0.05490718,91063.0,91061.0,0.03293288]
[1767557164383,0.01098177,91060.0,91054.0,0.03294249]
[1767557164628,0.01098152,91062.0,91056.0,0.01098225]
[1767557164788,0.0109814,91063.0,91058.0,0.01098201]
[1767557164993,0.06584016,91064.0,91060.0,0.000999]
[1767557165196,0.0659351,91064.0,91060.0,0.000999]
[1767557165419,0.0659351,91064.0,91059.0,0.01098189]
[1767557165816,0.02076062,91063.0,91059.0,0.06589116]
[1767557166622,0.02076062,91063.0,91060.0,0.01098177]
[1767557166819,0.02076062,91063.0,91060.0,0.06589051]
[1767557167245,0.01976162,91063.0,91061.0,0.05490809]
[1767557167425,0.00749854,91063.0,91062.0,0.05490764]
[1767557167632,0.03294056,91070.0,91065.0,0.01098116]
[1767557167829,0.0109808,91068.0,91064.0,0.01098128]
[1767557168018,0.01098068,91069.0,91065.0,0.01098116]
[1767557168218,0.06588416,91069.0,91064.0,0.06588762]
[1767557168558,0.06588416,91069.0,91065.0,0.01098116]
[1767557168559,0.01098068,91069.0,91065.0,0.01098116]
[1767557168900,0.06588417,91069.0,91064.0,0.06588762]
[1767557169149,0.0109808,91068.0,91064.0,0.06588762]
[1767557169348,0.06588434,91069.0,91064.0,0.06588759]
[1767557169737,0.03294056,91070.0,91066.0,0.01098104]
[1767557169919,0.02196,91070.0,91066.0,0.01098104]
[1767557170123,0.02245945,91070.0,91066.0,0.01098104]
[1767557170366,0.02245945,91070.0,91066.0,0.06588614]
[1767557172297,0.02245945,91070.0,91066.0,0.06579604]
[1767557172443,0.02245945,91070.0,91069.0,0.10234588]
[1767557172647,4e-05,91076.0,91073.0,0.06588085]
[1767557172846,0.022,91076.0,91073.0,0.0108901]
[1767557173069,0.022,91076.0,91073.0,0.0657909]
[1767557174129,0.022,91076.0,91074.0,0.05490015]
[1767557178218,0.022,91076.0,91073.0,0.0657909]
[1767557179715,0.022,91076.0,91073.0,0.0108901]
[1767557179917,0.022,91076.0,91070.0,0.01098056]
[1767557180123,0.06688024,91073.0,91067.0,0.06588505]
[1767557180292,0.000999,91073.0,91070.0,0.06588331]
[1767557180460,0.01098008,91074.0,91070.0,0.06588331]
[1767557180860,0.0658798,91075.0,91071.0,0.01098044]
[1767557181087,0.01098008,91074.0,91070.0,0.01098056]
[1767557181298,0.0658798,91075.0,91070.0,0.00998156]
[1767557181703,0.01098008,91074.0,91070.0,0.00998156]
[1767557181861,0.01091134,91074.0,91070.0,0.00998156]
[1767557182272,0.01097996,91075.0,91071.0,0.01098044]
[1767557182971,0.08787939,91076.0,91071.0,0.01098044]
[1767557183329,0.01097996,91075.0,91071.0,0.01098044]
[1767557184005,0.01097996,91075.0,91071.0,0.06588265]
[1767557184327,0.08787939,91076.0,91071.0,0.06588259]
[1767557184489,0.08787939,91076.0,91072.0,0.01098032]
[1767557186000,0.03297984,91076.0,91072.0,0.01098032]
[1767557186641,0.03297984,91076.0,91066.0,0.21962071]
[1767557186872,0.06588165,91073.0,91068.0,0.06588433]
[1767557187063,0.06588241,91072.0,91067.0,0.01098092]
[1767557187227,0.01098032,91072.0,91068.0,0.0109808]
[1767557187424,0.06588125,91073.0,91068.0,0.06588429]
[1767557191961,0.06588125,91073.0,91068.0,0.06579421]
[1767557192165,0.01098056,91070.0,91065.0,0.01098116]
[1767557192367,0.0658831,91071.0,91067.0,0.01098092]
[1767557192596,0.0658831,91071.0,91067.0,0.01093697]
[1767557193159,0.06588198,91072.0,91067.0,0.06584141]
[1767557193568,0.0658807,91074.0,91069.0,0.06588382]
[1767557193766,0.0658807,91074.0,91068.0,0.0658847]
[1767557193767,0.06588122,91073.0,91068.0,0.0658847]
[1767557193943,0.0109802,91073.0,91068.0,0.0658847]
[1767557195004,0.01098068,91069.0,91062.0,0.01148099]
[1767557195217,0.01098092,91067.0,91063.0,0.0109814]
[1767557195512,0.01098104,91066.0,91062.0,0.01148099]
[1767557195713,0.01091229,91066.0,91062.0,0.01148099]
[1767557195937,0.01098092,91067.0,91063.0,0.06588839]
[1767557196579,0.06588515,91068.0,91063.0,0.06588839]
[1767557196798,0.06588515,91068.0,91064.0,0.01098128]
[1767557197178,0.0109808,91068.0,91064.0,0.01098128]
[1767557197563,0.06588411,91069.0,91068.0,0.000999]
[1767557197725,0.06588411,91069.0,91065.0,0.01098116]
[1767557197915,0.06588411,91069.0,91064.0,0.06588734]
[1767557198640,0.06588411,91069.0,91064.0,0.06584339]
[1767557199871,0.06588414,91069.0,91065.0,0.01098116]
[1767557200181,0.06588414,91069.0,91064.0,0.06584339]
[1767557201766,0.06588414,91069.0,91065.0,0.01098116]
[1767557201966,0.01098068,91069.0,91065.0,0.01098116]
[1767557202163,0.01091194,91069.0,91065.0,0.01098116]
[1767557202534,0.01091194,91069.0,91065.0,0.01089109]
[1767557202835,0.06588423,91069.0,91064.0,0.06584339]
[1767557204365,4.4e-05,91064.0,91063.0,0.06588739]
[1767557204872,0.0109808,91068.0,91063.0,0.06588739]
[1767557205078,0.0109808,91068.0,91064.0,0.01098128]
[1767557205502,0.06588423,91069.0,91064.0,0.06588765]
[1767557205677,0.06588499,91068.0,91064.0,0.01098128]
[1767557206022,0.0109808,91068.0,91064.0,0.06588761]
[1767557206347,0.0109808,91068.0,91064.0,0.01098128]
[1767557206550,0.06588488,91068.0,91064.0,0.01098128]
[1767557207546,0.06588488,91068.0,91063.0,0.06588739]
[1767557207721,0.06588488,91068.0,91063.0,0.06584345]
[1767557207926,0.0109808,91068.0,91064.0,0.06588768]
[1767557208157,0.0109808,91068.0,91064.0,0.06584374]
[1767557208872,0.01098092,91067.0,91063.0,0.01089352]
[1767557209073,0.06588486,91068.0,91063.0,0.01089352]
[1767557209224,0.06588382,91070.0,91064.0,0.01098128]
[1767557209889,0.06588413,91069.0,91064.0,0.01098128]
[1767557210079,0.01098068,91069.0,91065.0,0.06588686]
[1767557210590,0.06588421,91069.0,91065.0,0.01098116]
[1767557211020,0.01098068,91069.0,91065.0,0.01098116]
[1767557211221,0.01098068,91069.0,91065.0,0.06588693]
[1767557212228,0.01098068,91069.0,91065.0,0.06584299]
[1767557212556,0.06588416,91069.0,91065.0,0.01093722]
[1767557213033,0.06588382,91070.0,91065.0,0.06584287]
[1767557215028,0.23058931,91071.0,91066.0,0.06588567]
[1767557215029,0.01098044,91071.0,91066.0,0.06588567]
[1767557215237,0.06588233,91073.0,91071.0,0.000955]
[1767557215462,0.06588233,91073.0,91068.0,0.06588431]
[1767557215771,0.06588233,91073.0,91069.0,0.01098068]
[1767557216391,0.06588233,91073.0,91068.0,0.06588431]
[1767557216771,0.06588233,91073.0,91069.0,0.01098068]
[1767557218749,0.06588233,91073.0,91069.0,0.01093565]
[1767557218949,0.06588233,91073.0,91069.0,0.01089062]
[1767557219151,0.06510733,91073.0,91068.0,0.06588431]
[1767557219838,0.06588168,91074.0,91069.0,0.06588388]
[1767557220750,0.022,91076.0,91071.0,0.05490176]
[1767557220924,0.022,91076.0,91075.0,0.04899267]
[1767557221110,0.01097827,91089.0,91078.0,0.05997226]
[1767557221313,0.02196,91088.0,91085.0,0.05489378]
[1767557221556,0.02196,91088.0,91084.0,0.05489433]
[1767557221756,0.03293839,91088.0,91083.0,0.06587395]
[1767557221985,0.02196,91088.0,91084.0,0.0548942]
[1767557222191,0.02196,91088.0,91085.0,0.05489378]
[1767557222372,0.000999,91084.0,91083.0,0.11486659]
[1767557222904,0.03293839,91088.0,91085.0,0.05489378]
[1767557222905,0.02196,91088.0,91085.0,0.05489378]
[1767557223661,0.02196,91088.0,91085.0,0.05389478]
[1767557224311,0.02196,91088.0,91085.0,0.06487353]
[1767557226311,0.02196,91088.0,91084.0,0.01097887]
[1767557226548,0.02196,91088.0,91086.0,0.05489317]
[1767557226898,0.02196,91088.0,91085.0,0.0658725]
[1767557227298,0.02196,91088.0,91083.0,0.21957898]
[1767557227537,0.02196,91088.0,91086.0,0.05489303]
[1767557227743,0.02196,91088.0,91087.0,0.05489257]
[1767557228735,0.021001,91088.0,91087.0,0.05489257]
[1767557229799,0.000152,91091.0,91090.0,0.05489076]
[1767557230206,1e-08,91091.0,91090.0,0.05489076]
[1767557231865,1e-08,91091.0,91090.0,0.10388343]
[1767557232414,1e-08,91091.0,91090.0,0.05489076]
[1767557233670,0.01296001,91098.0,91095.0,0.01097755]
[1767557233846,0.01296001,91098.0,91095.0,0.00997855]
[1767557234533,0.01296001,91098.0,91094.0,0.01097767]
[1767557235114,0.01296001,91098.0,91095.0,0.01097755]
[1767557235353,0.01287209,91098.0,91094.0,0.06586582]
[1767557235520,0.01287209,91098.0,91095.0,0.01097755]
[1767557236892,0.01287209,91098.0,91095.0,0.06586517]
[1767557237054,0.01287209,91098.0,91095.0,0.01097755]
[1767557237673,4e-05,91100.0,91097.0,0.0109773]
[1767557237876,4e-05,91105.0,91104.0,0.05488233]
[1767557238076,0.000152,91109.0,91105.0,0.05488136]
[1767557238293,0.000152,91109.0,91105.0,0.0658577]
[1767557238475,0.000152,91109.0,91106.0,0.01097622]
[1767557239008,0.000152,91109.0,91106.0,0.06585714]
[1767557239342,0.000152,91109.0,91106.0,0.01097622]
[1767557239793,0.000152,91109.0,91106.0,0.06585696]
[1767557239954,4e-05,91115.0,91109.0,0.01112786]
[1767557240157,4e-05,91115.0,91113.0,0.05487636]
[1767557240354,0.01097502,91116.0,91112.0,0.0109755]
[1767557240558,0.04794817,91117.0,91112.0,0.0109755]
[1767557240756,0.04794817,91117.0,91113.0,0.01097538]
[1767557240983,0.0664809,91118.0,91115.0,0.06585073]
[1767557240984,0.00063109,91118.0,91115.0,0.06585073]
[1767557241505,0.0009919,91118.0,91116.0,0.05487475]
[1767557241864,0.0009919,91118.0,91115.0,0.01097514]
[1767557242072,0.00863858,91127.0,91120.0,0.05487269]
[1767557242423,0.02196,91125.0,91122.0,0.01097429]
[1767557242563,0.02196,91125.0,91122.0,0.06584571]
[1767557242972,0.02196,91125.0,91123.0,0.05487083]
[1767557243173,0.02196,91125.0,91122.0,0.06584571]
[1767557243518,0.02196,91125.0,91122.0,0.01097429]
[1767557243713,0.02187204,91125.0,91123.0,0.05487083]
[1767557244284,0.00010817,91127.0,91124.0,0.06584428]
[1767557244869,1e-08,91128.0,91127.0,0.04899267]
[1767557245070,0.04794817,91142.0,91132.0,0.01097309]
[1767557245387,0.01097237,91138.0,91133.0,0.01097297]
[1767557245608,0.01097225,91139.0,91134.0,0.01097285]
[1767557245810,0.01097225,91139.0,91133.0,0.01097297]
[1767557245971,0.01097261,91136.0,91131.0,0.01097321]
[1767557246172,0.01097249,91137.0,91133.0,0.01097297]
[1767557246374,0.01097249,91137.0,91132.0,0.01097309]
[1767557246577,0.04794817,91130.0,91121.0,0.01097441]
[1767557246779,0.04794817,91126.0,91121.0,0.0878063]
[1767557246977,0.04794817,91126.0,91116.0,0.2194988]
[1767557246978,0.04053503,91126.0,91120.0,0.02196]
[1767557247202,0.04053503,91126.0,91117.0,0.0109749]
[1767557247456,0.04053503,91126.0,91118.0,0.01097477]
[1767557247635,0.04053503,91126.0,91119.0,0.01097465]
[1767557248012,0.04053503,91126.0,91113.0,0.00931092]
[1767557248222,0.05892282,91119.0,91113.0,0.01108355]
[1767557248635,0.01097453,91120.0,91115.0,0.01097514]
[1767557248846,0.1027731,91121.0,91115.0,0.0658507]
[1767557249050,0.05482493,91121.0,91115.0,0.0658507]
[1767557249347,0.05477744,91121.0,91116.0,0.01097502]
[1767557249549,0.11379401,91122.0,91121.0,0.00162746]
[1767557250770,0.06584584,91122.0,91121.0,0.00162746]
[1767557250975,0.11141981,91122.0,91121.0,0.00162746]
[1767557251695,0.06584584,91122.0,91121.0,0.00162746]
[1767557251977,0.11141981,91122.0,91121.0,0.00162746]
[1767557252187,0.06584584,91122.0,91121.0,0.00162746]
[1767557252493,0.11141981,91122.0,91121.0,0.00162746]
[1767557252681,0.06584584,91122.0,91121.0,0.00162746]
[1767557252878,0.11141981,91122.0,91121.0,0.00162746]
[1767557253079,0.06584584,91122.0,91121.0,0.00162746]
[1767557253545,0.23049273,91125.0,91121.0,0.00162746]
[1767557253546,4e-05,91125.0,91123.0,0.05487088]
[1767557253767,4e-05,91125.0,91124.0,0.05487028]
[1767557254465,0.02023943,91128.0,91127.0,0.05486848]
[1767557254666,0.01928043,91128.0,91126.0,0.05486897]
[1767557254960,0.01928043,91128.0,91125.0,0.06584345]
[1767557255243,0.01928043,91128.0,91125.0,0.01097393]
[1767557255492,0.01928043,91128.0,91125.0,0.06584353]
[1767557255711,0.01928043,91128.0,91126.0,0.05486902]
[1767557255930,0.01928043,91128.0,91127.0,0.05486848]
[1767557256113,0.01097297,91133.0,91128.0,0.05486751]
[1767557256330,0.01097297,91133.0,91128.0,0.01097357]
[1767557256758,0.01097309,91132.0,91127.0,0.01097369]
[1767557256949,0.06583788,91133.0,91128.0,0.01097357]
[1767557257168,0.06583788,91133.0,91128.0,0.0108347]
[1767557257388,0.000999,91128.0,91126.0,0.01097381]
[1767557257630,0.000999,91128.0,91126.0,0.06584278]
[1767557257837,0.01097321,91131.0,91126.0,0.06584278]
[1767557257996,0.01097321,91131.0,91127.0,0.01097369]
[1767557258192,0.01097309,91132.0,91127.0,0.06584201]
[1767557258662,0.022,91135.0,91128.0,0.0658414]
[1767557258879,4e-05,91135.0,91134.0,0.10109893]
[1767557259091,0.06591611,91150.0,91143.0,0.05485826]
[1767557259313,9e-05,91150.0,91143.0,0.05485826]
[1767557259513,9e-05,91150.0,91144.0,0.05485824]
[1767557259727,9e-05,91150.0,91148.0,0.05485557]
[1767557259907,9e-05,91150.0,91147.0,0.06582771]
[1767557260596,9e-05,91150.0,91146.0,0.0109714]
[1767557261660,9e-05,91150.0,91147.0,0.01097128]
[1767557262074,0.000999,91147.0,91146.0,0.06502835]
[1767557262498,9e-05,91150.0,91147.0,0.01097128]
[1767557262756,9e-05,91150.0,91147.0,0.06582767]
[1767557262957,9e-05,91150.0,91147.0,0.01097128]
[1767557263975,0.04529421,91150.0,91147.0,0.01097128]
[1767557265209,0.000999,91147.0,91145.0,0.06582798]
[1767557265421,9e-05,91150.0,91146.0,0.0109714]
[1767557265634,0.04529421,91150.0,91146.0,0.0109714]
[1767557265851,0.04529421,91150.0,91146.0,0.0658281]
[1767557266068,0.05626513,91150.0,91145.0,0.06582798]
[1767557266279,0.04529421,91150.0,91146.0,0.0109714]
[1767557266693,0.04529421,91150.0,91147.0,0.01097128]
[1767557266930,0.04529421,91150.0,91147.0,0.06582763]
[1767557267359,9e-05,91150.0,91147.0,0.01097128]
[1767557268413,9e-05,91150.0,91147.0,0.06582746]
[1767557268881,9e-05,91150.0,91148.0,0.1010902]
[1767557269105,4e-05,91157.0,91156.0,0.10108569]
[1767557269329,4e-05,91157.0,91155.0,0.05485162]
[1767557269330,0.000999,91156.0,91155.0,0.05485162]
[1767557269961,0.00014809,91157.0,91151.0,0.0109708]
[1767557270163,0.00014809,91157.0,91152.0,0.01097068]
[1767557270289,0.00014809,91157.0,91153.0,0.06582294]
[1767557270495,0.00014809,91157.0,91154.0,0.06482365]
[1767557271287,0.00014809,91157.0,91152.0,0.01097068]
[1767557271288,0.01111817,91157.0,91152.0,0.01097068]
[1767557271493,0.00014809,91157.0,91153.0,0.01097056]
[1767557271745,0.00014809,91157.0,91149.0,0.01097104]
[1767557271746,0.01097056,91153.0,91147.0,0.0548561]
[1767557271922,0.01097056,91153.0,90469.0,0.025]
[1767557271923,0.05485865,91144.0,91138.0,0.06583413]
[1767557272121,0.05415364,91143.0,91136.0,0.01097261]
[1767557272414,0.0658289,91146.0,91139.0,0.06583336]
[1767557272592,0.0658289,91146.0,91140.0,0.01097213]
[1767557272789,0.0658289,91146.0,91140.0,0.05486032]
[1767557273010,0.0109714,91146.0,91142.0,0.01097189]
[1767557273275,0.01097128,91147.0,91142.0,0.01097189]
[1767557273506,0.01097128,91147.0,91142.0,0.06583098]
[1767557273710,0.01097092,91150.0,91144.0,0.01097164]
[1767557273910,0.05485525,91149.0,91147.0,0.000999]
[1767557274135,0.0109708,91151.0,91146.0,0.0109714]
[1767557274302,0.06582527,91152.0,91147.0,0.05720595]
[1767557274507,0.0109708,91151.0,91147.0,0.05720595]
[1767557274715,0.08778454,91153.0,91149.0,0.04623467]
[1767557274890,0.06582422,91152.0,91149.0,0.04623467]
[1767557275498,0.01097068,91152.0,91149.0,0.04623467]
[1767557275698,0.06582448,91152.0,91149.0,0.04623467]
[1767557276734,0.01097068,91152.0,91149.0,0.04623467]
[1767557276959,0.0658242,91152.0,91149.0,0.04623467]
[1767557277185,0.05485403,91151.0,91149.0,0.04623467]
[1767557277434,0.0658242,91152.0,91149.0,0.04623467]
[1767557278169,0.06582488,91151.0,91146.0,0.0109714]
[1767557278412,0.0109708,91151.0,91146.0,0.06582833]
[1767557278635,0.0109708,91151.0,91146.0,0.1154727]
[1767557278853,0.0109708,91151.0,91147.0,0.04964437]
[1767557279059,0.0004,91165.0,91158.0,0.01086935]
[1767557279216,0.04654148,91158.0,91153.0,0.06582308]
[1767557279419,0.04654148,91158.0,91155.0,0.01097032]
[1767557279637,0.04654148,91158.0,91156.0,0.05485101]
[1767557280159,0.04654148,91158.0,91155.0,0.01097032]
[1767557280351,0.04654148,91158.0,91155.0,0.06582174]
[1767557280604,0.04554248,91158.0,91155.0,0.06582174]
[1767557281317,0.000999,91155.0,91153.0,0.00010809]
[1767557281424,0.04692679,91154.0,91153.0,0.00010809]
[1767557281627,0.04692679,91154.0,91153.0,0.05496091]
[1767557281886,0.04692679,91154.0,91153.0,0.00010809]
[1767557282068,0.04692679,91154.0,91153.0,0.05496091]
[1767557282445,0.04692679,91152.0,91147.0,4e-05]
[1767557282646,0.04692679,91151.0,91147.0,4e-05]
[1767557283046,0.04692679,91151.0,91147.0,0.06586746]
[1767557283422,0.04692679,91151.0,91148.0,0.01097116]
[1767557283573,0.04692679,91151.0,91147.0,0.01101128]
[1767557283774,0.01097068,91152.0,91148.0,0.01097116]
[1767557283951,0.01097068,91152.0,91147.0,0.01101128]
[1767557284177,0.05789759,91151.0,91147.0,4e-05]
[1767557284494,0.06582416,91152.0,91147.0,0.01101128]
[1767557284719,0.0109708,91151.0,91147.0,4e-05]
[1767557285036,0.04692679,91150.0,91147.0,4e-05]
[1767557285242,0.0109708,91151.0,91147.0,4e-05]
[1767557285443,0.0109708,91151.0,91147.0,0.01101128]
[1767557285652,0.0109708,91151.0,91147.0,4e-05]
[1767557286092,0.11275095,91152.0,91147.0,0.01101128]
[1767557286306,0.0109708,91151.0,91141.0,0.03293201]
[1767557286505,0.11275091,91152.0,91145.0,0.01097152]
[1767557286686,0.04692679,91152.0,91146.0,0.06582842]
[1767557287006,0.0109708,91151.0,91146.0,0.0109714]
[1767557287208,0.06582487,91151.0,91145.0,0.01097152]
[1767557287373,0.06582487,91151.0,91145.0,0.06582912]
[1767557288244,0.01097104,91149.0,91144.0,0.06582987]
[1767557288445,0.06582563,91150.0,91145.0,0.01097152]
[1767557288876,0.01097104,91149.0,91144.0,0.06582981]
[1767557289062,0.06582487,91151.0,91145.0,0.01097152]
[1767557290037,0.01097092,91150.0,91145.0,0.01097152]
[1767557291214,0.05485311,91153.0,91145.0,0.06582856]
[1767557291412,0.05485373,91152.0,91145.0,0.06582856]
[1767557291671,0.06582441,91152.0,91146.0,0.06582817]
[1767557291890,0.01097068,91152.0,91146.0,0.06582817]
[1767557292379,0.01097068,91152.0,91147.0,0.01097128]
[1767557292739,0.000891,91147.0,91143.0,0.06583059]
[1767557293094,0.000891,91147.0,91144.0,0.01097164]
[1767557293299,0.06582641,91149.0,91144.0,0.01097164]
[1767557293454,0.01097104,91149.0,91144.0,0.01097164]
[1767557293655,0.0109708,91151.0,91145.0,0.06582912]
[1767557293863,0.06582536,91151.0,91145.0,0.01097152]
[1767557294064,0.06582536,91151.0,91145.0,0.06582913]
[1767557294873,0.06582536,91151.0,91146.0,0.0109714]
[1767557296267,0.01097092,91150.0,91146.0,0.0109714]
[1767557296502,0.01097092,91150.0,91145.0,0.06582913]
[1767557296863,0.06582632,91149.0,91144.0,0.01097164]
[1767557297063,0.0658257,91150.0,91143.0,0.06583046]
[1767557297287,0.0109708,91151.0,91146.0,0.0109714]
[1767557298131,0.06582492,91151.0,91146.0,0.0109714]
[1767557298511,0.06582489,91151.0,91146.0,0.0109714]
[1767557298712,0.06582438,91152.0,91147.0,0.01097128]
[1767557299088,0.0109708,91151.0,91146.0,0.06582834]
[1767557299294,0.0109708,91151.0,91146.0,0.0109714]
[1767557299295,0.04692679,91150.0,91146.0,0.0109714]
[1767557299774,0.01097104,91149.0,91143.0,0.01097176]
[1767557299905,0.000891,91146.0,91144.0,0.05485776]
[1767557300309,0.05485633,91148.0,91142.0,0.05485896]
[1767557300530,0.06582627,91149.0,91143.0,0.06583007]
[1767557300746,0.05485597,91148.0,91142.0,0.06583085]
[1767557300908,0.06582713,91148.0,91143.0,0.01097176]
[1767557301113,0.01097128,91147.0,91142.0,0.06583085]
[1767557301311,0.06582627,91149.0,91143.0,0.0658304]
[1767557301553,0.01097116,91148.0,91143.0,0.0658304]
[1767557301752,0.04692679,91147.0,91143.0,0.0658304]
[1767557302342,0.01097116,91148.0,91143.0,0.01097176]
[1767557302538,0.01097128,91147.0,91143.0,0.01097176]
[1767557302730,0.01097128,91147.0,91142.0,0.06583085]
[1767557302972,0.01097128,91147.0,91142.0,0.01097189]
[1767557303323,0.000891,91142.0,91133.0,0.01097297]
[1767557303559,0.04692679,91137.0,91133.0,0.02196]
[1767557303719,0.0469268,91141.0,91138.0,0.00792136]
[1767557303915,0.0469268,91141.0,91137.0,0.000108]
[1767557304172,0.0469268,91141.0,91136.0,0.01097261]
[1767557304376,0.0469268,91141.0,91137.0,0.06583458]
[1767557304553,0.0469268,91141.0,91138.0,0.05919944]
[1767557304755,0.0468188,91141.0,91138.0,0.05919944]
[1767557305943,0.0468188,91141.0,91138.0,0.04822707]
[1767557306145,0.0468188,91141.0,91138.0,0.11406124]
[1767557306366,0.0468188,91141.0,91138.0,0.05919944]
[1767557306573,0.0468188,91141.0,91138.0,0.04822707]
[1767557306958,0.0468188,91141.0,91138.0,0.05919944]
[1767557307159,0.0468188,91141.0,91138.0,0.04822707]
[1767557307725,0.0468188,91141.0,91139.0,0.04822707]
[1767557310650,0.0468188,91141.0,91139.0,0.04722807]
[1767557312413,0.0468188,91141.0,91137.0,0.01097249]
[1767557312896,0.0468188,91141.0,91137.0,0.06583482]
[1767557313314,0.0468188,91141.0,91138.0,0.04719149]
[1767557313709,0.0468188,91141.0,91138.0,0.01097237]
[1767557313913,0.0468188,91141.0,91139.0,0.04719149]
[1767557318302,0.06583035,91144.0,91139.0,0.04719149]
[1767557318504,0.06583035,91144.0,91139.0,0.05816374]
[1767557319544,0.01097176,91143.0,91139.0,0.04719149]
[1767557320207,0.05779056,91143.0,91139.0,0.04719149]
[1767557320757,0.0468188,91143.0,91139.0,0.05816374]
[1767557321492,0.05779056,91143.0,91139.0,0.04719149]
[1767557323443,0.07741816,91143.0,91138.0,0.01097237]
[1767557323668,0.05779056,91143.0,91138.0,0.01097237]
[1767557323804,0.0468188,91143.0,91139.0,0.01097225]
[1767557324208,0.05779056,91143.0,91138.0,0.06583411]
[1767557324546,0.0468188,91143.0,91139.0,0.06583323]
[1767557324750,0.0468188,91143.0,91140.0,0.0600657]
[1767557325046,0.0468188,91143.0,91142.0,0.04909357]
[1767557325208,0.02196,91151.0,91149.0,0.05485469]
[1767557325415,0.02196,91151.0,91148.0,0.01097116]
[1767557325631,0.02196,91151.0,91149.0,0.04909357]
[1767557326225,0.0877834,91153.0,91149.0,0.04909357]
[1767557326562,0.06582421,91152.0,91149.0,0.04909357]
[1767557327075,0.01097068,91152.0,91149.0,0.04909357]
[1767557327264,0.06582457,91152.0,91149.0,0.04909357]
[1767557331615,0.08778445,91153.0,91149.0,0.04909357]
[1767557331839,0.02196,91153.0,91149.0,0.06006461]
[1767557331969,0.03293056,91153.0,91149.0,0.04909357]
[1767557332370,0.08778343,91153.0,91149.0,0.04909357]
[1767557333180,0.01097068,91152.0,91149.0,0.04909357]
[1767557333376,0.01097068,91152.0,91148.0,0.04909357]
[1767557333618,0.01097068,91152.0,91148.0,0.06006473]
[1767557333825,0.01097068,91152.0,91145.0,0.00663727]